[Event "European Online Club-ch-I 2021"]
[Site "Online"]
[Date "2021.03.27"]
[Round "9.6"]
[White "Muradli, Mahammad"]
[Black "Godart, Francois"]
[Result "1-0"]
[ECO "E14"]
[WhiteElo "2449"]
[BlackElo "2422"]
[Annotator "NA"]
[PlyCount "93"]
[EventDate "2021.03.27"]
[EventType "team-tourn"]
[EventCountry "NET"]
[SourceTitle "playchess.com"]
[Source "ChessBase"]
[SourceQuality "1"]
[TimeControl "900+5"]

1. Nf3 {[%emt 0:00:00]} d5 {[%emt 0:00:03]} 2. c4 {[%emt 0:00:03]} e6 {[%emt 0:00:01]} 3. e3 {[%emt 0:00:01]} Nf6 {[%emt 0:00:03]} 4. b3 {[%emt 0:00:01]} Be7 {[%emt 0:00:02]} 5. Bb2 {[%emt 0:00:04]} O-O {[%emt 0:00:01]} 6. Be2 {[%emt 0:01:10]} b6 {[%emt 0:00:03]} 7. O-O {[%emt 0:00:59]} Bb7 {[%emt 0:00:28]} 8. d4 {[%emt 0:00:03]} Nbd7 {[%emt 0:00:04]} 9. Nc3 {[%emt 0:00:20]} a6 {[%emt 0:00:02]} 10. Rc1 {[%emt 0:00:21]} Bd6 {[%emt 0:00:03]} 11. Qc2 {[%emt 0:00:40]} Ne4 {[%emt 0:00:41]} 12. cxd5 {[%emt 0:00:59]} exd5 {[%emt 0:00:03]} 13. Nxe4 {[%emt 0:00:01]} dxe4 {[%emt 0:00:02]} 14. Nd2 {[%emt 0:00:02]} Qh4 {[%emt 0:01:05]} 15. g3 {[%emt 0:00:39]} Qh3 {[%emt 0:00:03]} 16. Nxe4 {[%emt 0:02:17]} f5 {[%emt 0:01:07]} 17. Bc4+ {[%emt 0:05:38]} Kh8 {[%emt 0:00:10]} 18. Be6 {[%emt 0:00:01]} Nf6 {[%emt 0:05:46]} 19. f3 {[%emt 0:01:28]} Nxe4 {[%emt 0:00:03]} 20. fxe4 {[%emt 0:00:10]} Bxe4 {[%emt 0:00:01]} 21. Qxe4 {[%emt 0:00:54]} Qxf1+ {[%emt 0:00:03]} 22. Kxf1 {[%emt 0:00:23]} fxe4+ {[%emt 0:00:01]} 23. Ke2 {[%emt 0:00:01]} Rf6 {[%emt 0:01:18]} 24. d5 {[%emt 0:00:22]} Rf3 {[%emt 0:00:01]} 25. Bg4 {[%emt 0:00:07]} Rff8 {[%emt 0:00:54]} 26. Rc4 {[%emt 0:00:04]} Rae8 {[%emt 0:00:07]} 27. Be6 {[%emt 0:00:03]} Rf3 {[%emt 0:00:49]} 28. Rxe4 {[%emt 0:00:08]} Ref8 {[%emt 0:00:06]} 29. Bd4 {[%emt 0:00:06]} Rf1 {[%emt 0:00:55]} 30. Rg4 {[%emt 0:00:11]} R8f2+ {[%emt 0:00:01]} 31. Kd3 {[%emt 0:00:01]} Bf8 {[%emt 0:00:01]} 32. Be5 {[%emt 0:00:11]} Rc1 {[%emt 0:00:21]} 33. a4 {[%emt 0:00:04]} a5 {[%emt 0:00:03]} 34. h4 {[%emt 0:00:03]} Rb1 {[%emt 0:00:29]} 35. Kc3 {[%emt 0:00:11]} Rfb2 {[%emt 0:00:35]} 36. Rf4 {[%emt 0:00:02]} Rxb3+ {[%emt 0:00:02]} 37. Kc2 {[%emt 0:00:01]} Bc5 {[%emt 0:01:08]} 38. Rf7 {[%emt 0:00:10]} h5 {[%emt 0:00:24]} 39. Rxg7 {[%emt 0:00:05]} Bd6 {[%emt 0:00:21]} 40. Rg8+ {[%emt 0:00:05]} Kh7 {[%emt 0:00:01]} 41. Rh8+ {[%emt 0:00:04]} Kg6 {[%emt 0:00:02]} 42. Rg8+ {[%emt 0:00:02]} Kh7 {[%emt 0:00:01]} 43. Bd4 {[%emt 0:00:06]} Bc5 {[%emt 0:00:04]} 44. Bf6 {[%emt 0:00:09]} Rb4 {[%emt 0:00:25]} 45. Rg5 {[%emt 0:00:08]} Rf1 {[%emt 0:00:07]} 46. Bg8+ {[%emt 0:00:02]} Kh6 {[%emt 0:00:03]} 47. Bg7# {[%emt 0:00:01]} 1-0

[Event "European Online Club-ch-I 2021"]
[Site "Online"]
[Date "2021.03.27"]
[Round "9.7"]
[White "Marechal, Andy"]
[Black "Mammadzada, Gunay"]
[Result "1/2-1/2"]
[ECO "B23"]
[WhiteElo "2332"]
[BlackElo "2443"]
[Annotator "NA"]
[PlyCount "73"]
[EventDate "2021.03.27"]
[EventType "team-tourn"]
[EventCountry "NET"]
[SourceTitle "playchess.com"]
[Source "ChessBase"]
[SourceQuality "1"]
[TimeControl "900+5"]

1. e4 {[%emt 0:00:00]} c5 {[%emt 0:00:04]} 2. Nc3 {[%emt 0:00:04]} d6 {[%emt 0:00:05]} 3. f4 {[%emt 0:00:02]} g6 {[%emt 0:00:02]} 4. Nf3 {[%emt 0:00:01]} Bg7 {[%emt 0:00:02]} 5. Bb5+ {[%emt 0:00:03]} Bd7 {[%emt 0:00:02]} 6. Bc4 {[%emt 0:00:01]} Nc6 {[%emt 0:00:03]} 7. O-O {[%emt 0:00:07]} Na5 {[%emt 0:00:56]} 8. Be2 {[%emt 0:00:03]} Nf6 {[%emt 0:00:37]} 9. d3 {[%emt 0:00:04]} O-O {[%emt 0:00:06]} 10. Qe1 {[%emt 0:00:03]} Nc6 {[%emt 0:00:05]} 11. Qh4 {[%emt 0:00:33]} Nd4 {[%emt 0:00:23]} 12. Bd1 {[%emt 0:00:03]} Bg4 {[%emt 0:00:04]} 13. Nxd4 {[%emt 0:02:04]} cxd4 {[%emt 0:00:31]} 14. Bxg4 {[%emt 0:00:18]} dxc3 {[%emt 0:00:02]} 15. b3 {[%emt 0:00:04]} Nxg4 {[%emt 0:01:24]} 16. Qxg4 {[%emt 0:00:05]} Qb6+ {[%emt 0:00:11]} 17. Kh1 {[%emt 0:00:08]} f5 {[%emt 0:00:01]} 18. Qe2 {[%emt 0:00:48]} e6 {[%emt 0:00:23]} 19. a4 {[%emt 0:00:42]} Rae8 {[%emt 0:00:32]} 20. Be3 {[%emt 0:00:53]} Qa5 {[%emt 0:00:24]} 21. Rae1 {[%emt 0:01:14]} a6 {[%emt 0:00:35]} 22. Qf2 {[%emt 0:00:42]} fxe4 {[%emt 0:01:25]} 23. Bb6 {[%emt 0:01:22]} Qd5 {[%emt 0:01:30]} 24. dxe4 {[%emt 0:00:19]} Qc6 {[%emt 0:00:03]} 25. a5 {[%emt 0:00:46]} e5 {[%emt 0:01:32]} 26. f5 {[%emt 0:02:26]} d5 {[%emt 0:00:10]} 27. g4 {[%emt 0:00:31]} dxe4 {[%emt 0:00:21]} 28. Qe3 {[%emt 0:01:02]} Rf7 {[%emt 0:00:28]} 29. Qxe4 {[%emt 0:00:18]} Qxe4+ {[%emt 0:02:02]} 30. Rxe4 {[%emt 0:00:03]} h5 {[%emt 0:00:04]} 31. h3 {[%emt 0:00:10]} hxg4 {[%emt 0:00:02]} 32. hxg4 {[%emt 0:00:02]} Ref8 {[%emt 0:00:09]} 33. Rc4 {[%emt 0:00:23]} gxf5 {[%emt 0:00:29]} 34. gxf5 {[%emt 0:00:07]} e4 {[%emt 0:00:30]} 35. Rxe4 {[%emt 0:00:07]} Rxf5 {[%emt 0:00:02]} 36. Rxf5 {[%emt 0:00:15]} Rxf5 {[%emt 0:00:02]} 37. Kg2 {[%emt 0:00:11]} 1/2-1/2

[Event "European Online Club-ch-I 2021"]
[Site "Online"]
[Date "2021.03.27"]
[Round "9.8"]
[White "Bashirli, Nail"]
[Black "Dishman, Stephen"]
[Result "1/2-1/2"]
[ECO "B11"]
[WhiteElo "2382"]
[BlackElo "2316"]
[Annotator "NA"]
[PlyCount "153"]
[EventDate "2021.03.27"]
[EventType "team-tourn"]
[EventCountry "NET"]
[SourceTitle "playchess.com"]
[Source "ChessBase"]
[SourceQuality "1"]
[TimeControl "900+5"]

1. e4 {[%emt 0:00:00]} c6 {[%emt 0:00:02]} 2. Nc3 {[%emt 0:00:03]} d5 {[%emt 0:00:02]} 3. Nf3 {[%emt 0:00:02]} dxe4 {[%emt 0:00:30]} 4. Nxe4 {[%emt 0:00:03]} Nf6 {[%emt 0:00:02]} 5. Qe2 {[%emt 0:00:01]} Nxe4 {[%emt 0:00:03]} 6. Qxe4 {[%emt 0:00:02]} Nd7 {[%emt 0:00:00]} 7. Bc4 {[%emt 0:00:02]} Nf6 {[%emt 0:00:02]} 8. Ne5 {[%emt 0:00:02]} e6 {[%emt 0:00:04]} 9. Qf4 {[%emt 0:00:01]} b5 {[%emt 0:00:03]} 10. Be2 {[%emt 0:00:14]} Bd6 {[%emt 0:00:38]} 11. d4 {[%emt 0:00:03]} O-O {[%emt 0:00:47]} 12. O-O {[%emt 0:00:12]} Qc7 {[%emt 0:00:13]} 13. Re1 {[%emt 0:00:15]} Bb7 {[%emt 0:00:45]} 14. Bd3 {[%emt 0:00:11]} c5 {[%emt 0:00:40]} 15. dxc5 {[%emt 0:00:56]} Qxc5 {[%emt 0:00:53]} 16. Qg3 {[%emt 0:00:46]} g6 {[%emt 0:01:18]} 17. Bh6 {[%emt 0:01:21]} Nh5 {[%emt 0:02:24]} 18. Qe3 {[%emt 0:00:45]} Qd5 {[%emt 0:00:42]} 19. Bf1 {[%emt 0:00:21]} Rfe8 {[%emt 0:00:18]} 20. Rad1 {[%emt 0:00:06]} Qxe5 {[%emt 0:00:11]} 21. Qxe5 {[%emt 0:00:02]} Bxe5 {[%emt 0:00:03]} 22. Rxe5 {[%emt 0:00:02]} a6 {[%emt 0:00:21]} 23. Rd7 {[%emt 0:03:12]} Bd5 {[%emt 0:00:45]} 24. b3 {[%emt 0:00:26]} Nf6 {[%emt 0:00:15]} 25. Rd6 {[%emt 0:01:09]} Ng4 {[%emt 0:00:07]} 26. Bf4 {[%emt 0:00:22]} Nxe5 {[%emt 0:00:08]} 27. Bxe5 {[%emt 0:00:02]} Rec8 {[%emt 0:00:24]} 28. c3 {[%emt 0:00:29]} Kf8 {[%emt 0:00:26]} 29. Bf6 {[%emt 0:00:20]} Ke8 {[%emt 0:00:15]} 30. f4 {[%emt 0:02:45]} Rc6 {[%emt 0:00:09]} 31. Rxc6 {[%emt 0:00:01]} Bxc6 {[%emt 0:00:01]} 32. Kf2 {[%emt 0:00:01]} Ra7 {[%emt 0:00:21]} 33. Ke3 {[%emt 0:00:29]} Rd7 {[%emt 0:00:05]} 34. Bd4 {[%emt 0:00:01]} h5 {[%emt 0:00:42]} 35. g3 {[%emt 0:00:06]} Kd8 {[%emt 0:00:49]} 36. Bd3 {[%emt 0:00:34]} Kc7 {[%emt 0:00:04]} 37. Be5+ {[%emt 0:00:03]} Kb7 {[%emt 0:00:02]} 38. Bd4 {[%emt 0:00:19]} Bd5 {[%emt 0:00:17]} 39. Be2 {[%emt 0:00:05]} Kc6 {[%emt 0:00:16]} 40. Bd3 {[%emt 0:00:38]} Rd8 {[%emt 0:00:08]} 41. Bf6 {[%emt 0:00:10]} Ra8 {[%emt 0:00:11]} 42. Bc2 {[%emt 0:00:12]} a5 {[%emt 0:00:05]} 43. a3 {[%emt 0:00:02]} Rc8 {[%emt 0:00:23]} 44. Kd4 {[%emt 0:00:03]} Kb6 {[%emt 0:00:14]} 45. Ke3 {[%emt 0:00:16]} Kc6 {[%emt 0:00:34]} 46. Kd4 {[%emt 0:00:02]} Rc7 {[%emt 0:00:03]} 47. Ke3 {[%emt 0:00:13]} Rd7 {[%emt 0:00:15]} 48. Bd4 {[%emt 0:00:05]} Bh1 {[%emt 0:00:04]} 49. Bd3 {[%emt 0:00:09]} Rd8 {[%emt 0:00:24]} 50. Bf6 {[%emt 0:00:19]} Ra8 {[%emt 0:00:03]} 51. Kd4 {[%emt 0:00:10]} Bd5 {[%emt 0:00:11]} 52. Bc2 {[%emt 0:00:04]} a4 {[%emt 0:00:22]} 53. b4 {[%emt 0:00:30]} Rc8 {[%emt 0:00:04]} 54. Bd3 {[%emt 0:00:03]} Kb6 {[%emt 0:00:22]} 55. Be7 {[%emt 0:00:02]} Re8 {[%emt 0:00:15]} 56. Bc5+ {[%emt 0:00:02]} Kc6 {[%emt 0:00:01]} 57. Ke3 {[%emt 0:00:07]} Rb8 {[%emt 0:00:11]} 58. Bd4 {[%emt 0:00:04]} Rb7 {[%emt 0:00:04]} 59. Bf6 {[%emt 0:00:03]} Bh1 {[%emt 0:00:05]} 60. Bc2 {[%emt 0:00:07]} Kd5 {[%emt 0:00:06]} 61. Bd3 {[%emt 0:00:03]} Kc6 {[%emt 0:00:15]} 62. Bd4 {[%emt 0:00:05]} Rd7 {[%emt 0:00:04]} 63. Bc2 {[%emt 0:00:05]} Bd5 {[%emt 0:00:04]} 64. Bd3 {[%emt 0:00:03]} Bc4 {[%emt 0:00:04]} 65. Be4+ {[%emt 0:00:01]} Bd5 {[%emt 0:00:01]} 66. Bd3 {[%emt 0:00:01]} f5 {[%emt 0:00:06]} 67. Be2 {[%emt 0:00:26]} Bh1 {[%emt 0:00:05]} 68. Bf1 {[%emt 0:00:04]} Rb7 {[%emt 0:00:06]} 69. Be2 {[%emt 0:00:04]} Kd5 {[%emt 0:00:04]} 70. Bd3 {[%emt 0:00:05]} Be4 {[%emt 0:00:04]} 71. Be2 {[%emt 0:00:02]} Rb8 {[%emt 0:00:08]} 72. h4 {[%emt 0:00:02]} Rb7 {[%emt 0:00:03]} 73. Bf1 {[%emt 0:00:04]} Kc6 {[%emt 0:00:10]} 74. Be2 {[%emt 0:00:03]} Kd5 {[%emt 0:00:09]} 75. Bf1 {[%emt 0:00:02]} Kc6 {[%emt 0:00:11]} 76. Kd2 {[%emt 0:00:04]} Kd5 {[%emt 0:00:02]} 77. Ke3 {[%emt 0:00:01]} 1/2-1/2

[Event "European Online Club-ch-I 2021"]
[Site "Online"]
[Date "2021.03.27"]
[Round "9.9"]
[White "Skytte, Rasmus"]
[Black "Saric, Ivan"]
[Result "0-1"]
[ECO "B22"]
[WhiteElo "2381"]
[BlackElo "2648"]
[Annotator "ChessBase"]
[PlyCount "140"]
[EventDate "2021.03.27"]
[EventType "team-tourn"]
[EventCountry "NET"]
[SourceTitle "playchess.com"]
[Source "ChessBase"]
[SourceQuality "1"]
[TimeControl "900+5"]

1. e4 {[%emt 0:00:00]} c5 {[%emt 0:00:03]} 2. c3 {[%emt 0:00:03]} Nf6 {[%emt 0:00:02]} 3. e5 {[%emt 0:00:02]} Nd5 {[%emt 0:00:01]} 4. d4 {[%emt 0:00:02]} cxd4 {[%emt 0:00:01]} 5. Nf3 {[%emt 0:00:02]} d6 {[%emt 0:00:02]} 6. Bc4 {[%emt 0:00:03]} Nb6 {[%emt 0:00:59]} 7. Bb3 {[%emt 0:00:03]} Nc6 {[%emt 0:00:18]} 8. exd6 {[%emt 0:00:06]} Qxd6 {[%emt 0:00:22]} 9. O-O {[%emt 0:00:31]} Be6 {[%emt 0:00:28]} 10. Na3 {[%emt 0:00:04]} Bxb3 {[%emt 0:00:22]} 11. Qxb3 {[%emt 0:00:06]} Qd7 {[%emt 0:01:36]} 12. Rd1 {[%emt 0:00:34]} d3 {[%emt 0:00:40]} 13. c4 {[%emt 0:01:03]} Rd8 {[%emt 0:01:21]} 14. c5 {[%emt 0:01:49]} Nd5 {[%emt 0:00:31]} 15. Nc4 {[%emt 0:00:06]} e6 {[%emt 0:00:15]} 16. Nfe5 {[%emt 0:02:36]} Qc7 {[%emt 0:00:02]} 17. Nxc6 {[%emt 0:00:54]} bxc6 {[%emt 0:00:54]} 18. Qa3 {[%emt 0:00:21]} Be7 {[%emt 0:00:57]} 19. Rxd3 {[%emt 0:00:04]} O-O {[%emt 0:00:04]} 20. Bd2 {[%emt 0:00:21]} Rd7 {[%emt 0:01:22]} 21. Re1 {[%emt 0:00:47]} Nf6 {[%emt 0:00:24]} 22. Nd6 {[%emt 0:00:51]} Nd5 {[%emt 0:00:12]} 23. Nc4 {[%emt 0:00:49]} Qc8 {[%emt 0:00:48]} 24. Ne5 {[%emt 0:00:34]} Rb7 {[%emt 0:00:06]} 25. b4 {[%emt 0:00:23]} Rd8 {[%emt 0:01:14]} 26. Qa4 {[%emt 0:00:32]} Rc7 {[%emt 0:00:25]} 27. a3 {[%emt 0:00:26]} f6 {[%emt 0:00:02]} 28. Nc4 {[%emt 0:00:09]} e5 {[%emt 0:00:08]} 29. Na5 {[%emt 0:00:53]} Kf8 {[%emt 0:00:46]} 30. g3 {[%emt 0:00:43]} Qf5 {[%emt 0:01:53]} 31. Qb3 {[%emt 0:00:10]} Rcd7 {[%emt 0:00:26]} 32. Rf3 {[%emt 0:01:02]} Qe6 {[%emt 0:00:10]} 33. Bc1 {[%emt 0:00:08]} Rc8 {[%emt 0:00:03]} 34. Rd3 {[%emt 0:00:26]} e4 {[%emt 0:00:13]} 35. Rdd1 {[%emt 0:00:18]} f5 {[%emt 0:00:02]} 36. Bb2 {[%emt 0:00:12]} Bd8 {[%emt 0:00:18]} 37. Nc4 {[%emt 0:00:04]} Bc7 {[%emt 0:00:01]} 38. Ne3 {[%emt 0:00:26]} Rcd8 {[%emt 0:00:04]} 39. Nxd5 {[%emt 0:00:04]} Rxd5 {[%emt 0:00:02]} 40. Rxd5 {[%emt 0:00:04]} Qxd5 {[%emt 0:00:02]} 41. Qc3 {[%emt 0:00:01]} Rd7 {[%emt 0:00:04]} 42. a4 {[%emt 0:00:04]} a6 {[%emt 0:00:04]} 43. b5 {[%emt 0:00:05]} axb5 {[%emt 0:00:02]} 44. axb5 {[%emt 0:00:02]} cxb5 {[%emt 0:00:09]} 45. c6 {[%emt 0:00:01]} Rf7 {[%emt 0:00:03]} 46. Ra1 {[%emt 0:00:02]} Rf6 {[%emt 0:00:26]} 47. Ra8+ {[%emt 0:00:14]} Ke7 {[%emt 0:00:10]} 48. Ba3+ {[%emt 0:00:12]} Kf7 {[%emt 0:00:08]} 49. Ra7 {[%emt 0:00:11]} Qd1+ {[%emt 0:00:02]} 50. Kg2 {[%emt 0:00:02]} Qf3+ {[%emt 0:00:01]} 51. Qxf3 {[%emt 0:00:02]} exf3+ {[%emt 0:00:02]} 52. Kxf3 {[%emt 0:00:02]} Rxc6 {[%emt 0:00:01]} 53. Bd6 {[%emt 0:00:02]} Rxd6 {[%emt 0:00:06]} 54. Rxc7+ {[%emt 0:00:02]} Kf6 {[%emt 0:00:02]} 55. Rb7 {[%emt 0:00:02]} Rd3+ {[%emt 0:00:02]} 56. Kg2 {[%emt 0:00:03]} Rb3 {[%emt 0:00:02]} 57. h4 {[%emt 0:00:01]} h5 {[%emt 0:00:05]} 58. Rb6+ {[%emt 0:00:04]} Kf7 {[%emt 0:00:14]} 59. f3 {[%emt 0:00:37]} Rb2+ {[%emt 0:00:03]} 60. Kh3 {[%emt 0:00:02]} b4 {[%emt 0:00:02]} 61. f4 {[%emt 0:00:10]} b3 {[%emt 0:00:06]} 62. Rb5 {[%emt 0:00:01]} Ke6 {[%emt 0:00:08]} 63. Rb7 {[%emt 0:00:03]} g6 {[%emt 0:00:14]} 64. Rg7 {[%emt 0:00:02]} Rc2 {[%emt 0:00:13]} 65. Rxg6+ {[%emt 0:00:02]} Kd5 {[%emt 0:00:01]} 66. Rb6 {[%emt 0:00:06]} b2 {[%emt 0:00:02]} 67. g4 {[%emt 0:00:07]} fxg4+ {[%emt 0:00:10]} 68. Kg3 {[%emt 0:00:02]} Kc4 {[%emt 0:00:05]} 69. f5 {[%emt 0:00:01]} Rc3+ {[%emt 0:00:01]} 70. Kf4 {[%emt 0:00:02]} Rb3 {[%emt 0:00:01]} 0-1

[Event "European Online Club-ch-I 2021"]
[Site "Online"]
[Date "2021.03.27"]
[Round "9.10"]
[White "Heberla, Bartlomiej"]
[Black "Sorensen, Jan"]
[Result "1-0"]
[ECO "C02"]
[WhiteElo "2556"]
[BlackElo "2369"]
[Annotator "ChessBase"]
[PlyCount "169"]
[EventDate "2021.03.27"]
[EventType "team-tourn"]
[EventCountry "NET"]
[SourceTitle "playchess.com"]
[Source "ChessBase"]
[SourceQuality "1"]
[TimeControl "900+5"]

1. e4 {[%emt 0:00:00]} e6 {[%emt 0:00:02]} 2. d4 {[%emt 0:00:03]} d5 {[%emt 0:00:02]} 3. e5 {[%emt 0:00:00]} c5 {[%emt 0:00:02]} 4. c3 {[%emt 0:00:00]} Qb6 {[%emt 0:00:01]} 5. Nf3 {[%emt 0:00:01]} Nc6 {[%emt 0:00:02]} 6. Na3 {[%emt 0:00:01]} cxd4 {[%emt 0:00:06]} 7. cxd4 {[%emt 0:00:00]} Bb4+ {[%emt 0:01:23]} 8. Bd2 {[%emt 0:00:03]} Bxa3 {[%emt 0:01:41]} 9. bxa3 {[%emt 0:00:03]} Nxd4 {[%emt 0:00:06]} 10. Qa4+ {[%emt 0:00:02]} Nc6 {[%emt 0:00:04]} 11. Bd3 {[%emt 0:00:01]} Nge7 {[%emt 0:02:28]} 12. O-O {[%emt 0:00:57]} Bd7 {[%emt 0:01:00]} 13. Qg4 {[%emt 0:01:08]} Kf8 {[%emt 0:01:29]} 14. Rab1 {[%emt 0:00:05]} Qc7 {[%emt 0:00:11]} 15. Rfc1 {[%emt 0:00:02]} b6 {[%emt 0:01:24]} 16. Bb4 {[%emt 0:00:11]} Qd8 {[%emt 0:00:35]} 17. Bd6 {[%emt 0:00:05]} Kg8 {[%emt 0:00:11]} 18. Rc3 {[%emt 0:01:43]} Nc8 {[%emt 0:01:09]} 19. Bb4 {[%emt 0:00:30]} a5 {[%emt 0:00:37]} 20. Bd6 {[%emt 0:00:13]} Nxd6 {[%emt 0:00:01]} 21. exd6 {[%emt 0:00:00]} e5 {[%emt 0:00:27]} 22. Bf5 {[%emt 0:00:08]} Bxf5 {[%emt 0:00:44]} 23. Qxf5 {[%emt 0:00:00]} g6 {[%emt 0:00:03]} 24. Qg4 {[%emt 0:01:15]} Qxd6 {[%emt 0:00:39]} 25. Rbc1 {[%emt 0:01:48]} Ne7 {[%emt 0:00:06]} 26. Rc7 {[%emt 0:00:04]} Kg7 {[%emt 0:00:13]} 27. Rd7 {[%emt 0:00:36]} Qf6 {[%emt 0:00:36]} 28. Rcc7 {[%emt 0:00:12]} Rac8 {[%emt 0:00:15]} 29. Rxe7 {[%emt 0:00:10]} Qxe7 {[%emt 0:00:06]} 30. Rxc8 {[%emt 0:00:02]} f5 {[%emt 0:00:01]} 31. Qh4 {[%emt 0:00:28]} Qxh4 {[%emt 0:01:27]} 32. Rc7+ {[%emt 0:00:03]} Kf6 {[%emt 0:00:04]} 33. Nxh4 {[%emt 0:00:02]} e4 {[%emt 0:00:01]} 34. g3 {[%emt 0:00:06]} Ke5 {[%emt 0:00:14]} 35. Kf1 {[%emt 0:00:05]} Kd6 {[%emt 0:00:11]} 36. Rc1 {[%emt 0:00:06]} Rf8 {[%emt 0:00:03]} 37. Ng2 {[%emt 0:00:06]} g5 {[%emt 0:00:01]} 38. Ke2 {[%emt 0:01:24]} f4 {[%emt 0:00:03]} 39. gxf4 {[%emt 0:00:00]} gxf4 {[%emt 0:00:01]} 40. f3 {[%emt 0:00:00]} Ke5 {[%emt 0:00:04]} 41. Rc7 {[%emt 0:00:07]} Rg8 {[%emt 0:00:06]} 42. Ne1 {[%emt 0:00:01]} Rg1 {[%emt 0:00:09]} 43. Rxh7 {[%emt 0:00:37]} Kd4 {[%emt 0:00:13]} 44. Rh4 {[%emt 0:00:24]} Ke5 {[%emt 0:00:03]} 45. Kf2 {[%emt 0:00:15]} Rh1 {[%emt 0:00:03]} 46. Ng2 {[%emt 0:00:04]} e3+ {[%emt 0:00:02]} 47. Ke2 {[%emt 0:00:02]} Ra1 {[%emt 0:00:02]} 48. Nxf4 {[%emt 0:00:20]} Rxa2+ {[%emt 0:00:01]} 49. Kxe3 {[%emt 0:00:01]} d4+ {[%emt 0:00:02]} 50. Kd3 {[%emt 0:00:00]} Rxa3+ {[%emt 0:00:01]} 51. Ke2 {[%emt 0:00:14]} Ra2+ {[%emt 0:00:03]} 52. Ke1 {[%emt 0:00:03]} a4 {[%emt 0:00:04]} 53. Nd3+ {[%emt 0:00:02]} Kf5 {[%emt 0:00:02]} 54. Rf4+ {[%emt 0:00:11]} Kg5 {[%emt 0:00:01]} 55. h4+ {[%emt 0:00:02]} Kh5 {[%emt 0:00:03]} 56. Rxd4 {[%emt 0:00:02]} b5 {[%emt 0:00:01]} 57. Rb4 {[%emt 0:00:20]} a3 {[%emt 0:00:05]} 58. Rxb5+ {[%emt 0:01:12]} Kxh4 {[%emt 0:00:02]} 59. Ra5 {[%emt 0:00:00]} Kg3 {[%emt 0:00:19]} 60. f4 {[%emt 0:00:04]} Kf3 {[%emt 0:00:06]} 61. f5 {[%emt 0:00:14]} Ke3 {[%emt 0:00:03]} 62. Nc1 {[%emt 0:00:01]} Ra1 {[%emt 0:00:04]} 63. Kd1 {[%emt 0:00:02]} Rb1 {[%emt 0:00:08]} 64. Rxa3+ {[%emt 0:01:54]} Ke4 {[%emt 0:00:02]} 65. Ra5 {[%emt 0:00:00]} Rb6 {[%emt 0:00:23]} 66. Ne2 {[%emt 0:00:05]} Rf6 {[%emt 0:00:10]} 67. Nc3+ {[%emt 0:00:06]} Kd3 {[%emt 0:00:04]} 68. Ne2 {[%emt 0:00:48]} Ke4 {[%emt 0:00:10]} 69. Ng3+ {[%emt 0:00:01]} Kf3 {[%emt 0:00:02]} 70. Nh5 {[%emt 0:00:03]} Rd6+ {[%emt 0:00:06]} 71. Kc2 {[%emt 0:00:03]} Kg4 {[%emt 0:00:03]} 72. f6 {[%emt 0:00:01]} Rd7 {[%emt 0:00:09]} 73. Re5 {[%emt 0:00:08]} Kh4 {[%emt 0:00:08]} 74. Kc3 {[%emt 0:00:02]} Kg4 {[%emt 0:00:02]} 75. Kc4 {[%emt 0:00:02]} Kh4 {[%emt 0:00:01]} 76. Kc5 {[%emt 0:00:01]} Kg4 {[%emt 0:00:06]} 77. Kc6 {[%emt 0:00:01]} Ra7 {[%emt 0:00:02]} 78. Kd6 {[%emt 0:00:10]} Rb7 {[%emt 0:00:05]} 79. Ke6 {[%emt 0:00:01]} Ra7 {[%emt 0:00:02]} 80. f7 {[%emt 0:00:03]} Ra6+ {[%emt 0:00:03]} 81. Ke7 {[%emt 0:00:04]} Ra7+ {[%emt 0:00:04]} 82. Kf6 {[%emt 0:00:01]} Ra6+ {[%emt 0:00:02]} 83. Kg7 {[%emt 0:00:03]} Ra7 {[%emt 0:00:02]} 84. Nf6+ {[%emt 0:00:05]} Kf4 {[%emt 0:00:05]} 85. Rd5 {[%emt 0:00:00]} 1-0

[Event "European Online Club-ch-I 2021"]
[Site "Online"]
[Date "2021.03.27"]
[Round "9.11"]
[White "Vinter-Schou, Uffe"]
[Black "Polak, Tomas"]
[Result "1-0"]
[ECO "B13"]
[WhiteElo "2320"]
[BlackElo "2553"]
[Annotator "ChessBase"]
[PlyCount "113"]
[EventDate "2021.03.27"]
[EventType "team-tourn"]
[EventCountry "NET"]
[SourceTitle "playchess.com"]
[Source "ChessBase"]
[SourceQuality "1"]
[TimeControl "900+5"]

1. e4 {[%emt 0:00:00]} c6 {[%emt 0:00:04]} 2. d4 {[%emt 0:00:05]} d5 {[%emt 0:00:02]} 3. exd5 {[%emt 0:00:01]} cxd5 {[%emt 0:00:02]} 4. Bd3 {[%emt 0:00:03]} Nc6 {[%emt 0:00:03]} 5. c3 {[%emt 0:00:05]} Qc7 {[%emt 0:00:18]} 6. h3 {[%emt 0:00:03]} e6 {[%emt 0:00:07]} 7. Nf3 {[%emt 0:00:05]} Bd6 {[%emt 0:00:05]} 8. O-O {[%emt 0:00:00]} Nge7 {[%emt 0:00:01]} 9. Re1 {[%emt 0:00:04]} Bd7 {[%emt 0:00:22]} 10. Nbd2 {[%emt 0:00:53]} f6 {[%emt 0:00:14]} 11. c4 {[%emt 0:00:06]} Nb4 {[%emt 0:00:19]} 12. Bf1 {[%emt 0:00:28]} dxc4 {[%emt 0:00:07]} 13. Nxc4 {[%emt 0:00:13]} Nbd5 {[%emt 0:00:10]} 14. Bd2 {[%emt 0:00:23]} O-O {[%emt 0:00:55]} 15. Rc1 {[%emt 0:00:06]} Nc6 {[%emt 0:00:06]} 16. Qb3 {[%emt 0:02:04]} Rfe8 {[%emt 0:01:28]} 17. Bd3 {[%emt 0:02:12]} Bf8 {[%emt 0:00:45]} 18. Be4 {[%emt 0:00:40]} Kh8 {[%emt 0:00:36]} 19. Ne3 {[%emt 0:00:31]} Nxe3 {[%emt 0:00:16]} 20. Bxe3 {[%emt 0:00:00]} Qb6 {[%emt 0:00:43]} 21. Qc2 {[%emt 0:01:48]} Nb4 {[%emt 0:00:30]} 22. Qb1 {[%emt 0:00:04]} f5 {[%emt 0:00:37]} 23. d5 {[%emt 0:01:27]} Qa5 {[%emt 0:00:23]} 24. a3 {[%emt 0:04:31]} fxe4 {[%emt 0:02:28]} 25. axb4 {[%emt 0:00:04]} Bxb4 {[%emt 0:00:09]} 26. Qxe4 {[%emt 0:00:05]} exd5 {[%emt 0:00:46]} 27. Qd3 {[%emt 0:00:25]} Qb5 {[%emt 0:01:13]} 28. Qb1 {[%emt 0:00:24]} Bxe1 {[%emt 0:01:19]} 29. Ng5 {[%emt 0:00:07]} g6 {[%emt 0:00:05]} 30. Rxe1 {[%emt 0:00:07]} Bf5 {[%emt 0:00:16]} 31. Qc1 {[%emt 0:00:07]} Qc4 {[%emt 0:00:15]} 32. Qd2 {[%emt 0:00:07]} Kg8 {[%emt 0:00:10]} 33. Rc1 {[%emt 0:00:05]} Qd3 {[%emt 0:00:09]} 34. Qb4 {[%emt 0:00:03]} b6 {[%emt 0:01:05]} 35. Qd6 {[%emt 0:00:14]} Rad8 {[%emt 0:00:13]} 36. Qf6 {[%emt 0:00:03]} Rd7 {[%emt 0:00:08]} 37. Bd4 {[%emt 0:00:03]} Qxd4 {[%emt 0:00:15]} 38. Qxd4 {[%emt 0:00:03]} h6 {[%emt 0:00:01]} 39. Nf3 {[%emt 0:00:03]} Kh7 {[%emt 0:00:04]} 40. Re1 {[%emt 0:00:07]} Re4 {[%emt 0:00:09]} 41. Qf6 {[%emt 0:00:06]} Rxe1+ {[%emt 0:00:05]} 42. Nxe1 {[%emt 0:00:04]} d4 {[%emt 0:00:02]} 43. Nf3 {[%emt 0:00:03]} d3 {[%emt 0:00:04]} 44. Nd2 {[%emt 0:00:01]} Rc7 {[%emt 0:00:07]} 45. g4 {[%emt 0:00:04]} Bc8 {[%emt 0:00:05]} 46. Qd6 {[%emt 0:00:08]} Rc1+ {[%emt 0:00:09]} 47. Kh2 {[%emt 0:00:02]} h5 {[%emt 0:00:40]} 48. gxh5 {[%emt 0:00:10]} Bf5 {[%emt 0:00:03]} 49. hxg6+ {[%emt 0:00:05]} Bxg6 {[%emt 0:00:02]} 50. h4 {[%emt 0:00:09]} Rc2 {[%emt 0:00:03]} 51. Qf4 {[%emt 0:00:07]} Rxb2 {[%emt 0:00:10]} 52. Qg5 {[%emt 0:00:04]} a5 {[%emt 0:00:12]} 53. h5 {[%emt 0:00:03]} Bf7 {[%emt 0:00:02]} 54. Qf5+ {[%emt 0:00:02]} Kg8 {[%emt 0:00:02]} 55. h6 {[%emt 0:00:05]} Rxd2 {[%emt 0:00:27]} 56. Qg5+ {[%emt 0:00:03]} Kf8 {[%emt 0:00:02]} 57. Qxd2 {[%emt 0:00:03]} 1-0